bitfinex-derivatives/quotes_ETHF0:USTF0_20250220
["timestamp","ask_amount","ask_price","bid_price","bid_amount"]
[1740079993414,3.2078,2757.9,2757.8,0.72505]
[1740079996309,1.0955,2758.4,2758.3,0.72492]
[1740079996310,3.2078,2758.4,2758.3,0.72492]
[1740079997811,3.2078,2758.4,2757.7,1.8127]
[1740079998018,4.32718,2758.5,2757.9,0.72502]
[1740079998019,3.2078,2758.0,2757.9,0.72502]
[1740080003020,3.2078,2758.0,2757.6,1.81274]
[1740080003225,3.93281,2758.0,2757.9,0.72502]
[1740080003524,3.2078,2758.0,2757.9,0.72502]
[1740080003821,3.2078,2758.4,2758.3,0.72492]
[1740080004216,3.93269,2758.4,2758.3,0.72492]
[1740080004918,3.93269,2758.4,2758.2,0.72492]
[1740080004919,0.72494,2758.3,2758.2,0.72492]
[1740080005118,0.5852,2758.3,2757.6,1.1331]
[1740080005324,3.2078,2757.8,2757.4,0.00543646]
[1740080005522,0.72512,2757.6,2757.5,0.7251]
[1740080005723,1.6959,2757.7,2757.4,0.00543646]
[1740080006022,3.93293,2757.5,2757.4,0.73058646]
[1740080006420,3.2078,2757.5,2757.4,0.73058646]
[1740080006818,3.93293,2757.5,2757.4,0.00543646]
[1740080008025,3.93293,2757.5,2757.4,0.73059646]
[1740080008227,3.93293,2757.5,2757.4,0.00543646]
[1740080009225,3.2078,2757.5,2756.6,0.5429]
[1740080009425,3.2078,2756.9,2756.6,0.5429]
[1740080009725,3.2078,2756.9,2756.8,0.72531]
[1740080010722,0.73067646,2757.1,2756.6,0.54833646]
[1740080010723,0.00543646,2757.1,2756.6,0.54833646]
[1740080010923,0.73068646,2757.1,2756.9,0.72527]
[1740080011127,3.2078,2757.0,2756.6,0.54833646]
[1740080011432,4.49307,2757.0,2756.9,0.72529]
[1740080011823,3.7678,2757.0,2756.6,0.00543646]
[1740080012027,4.49308,2757.0,2756.8,0.7253]
[1740080012231,4.3193,2757.0,2756.6,0.00543646]
[1740080012528,4.8999,2757.0,2756.6,0.00543646]
[1740080012725,3.2078,2756.7,2756.0,1.81376]
[1740080012928,0.72546,2756.3,2756.1,0.72548]
[1740080013227,3.2078,2756.4,2755.8,22.98574214]
[1740080013427,3.2078,2755.9,2755.8,22.98574214]
[1740080013834,3.2078,2755.9,2755.8,23.71132214]
[1740080014131,3.2078,2755.9,2755.8,0.72558]
[1740080014433,3.2078,2755.9,2755.6,0.00543646]
[1740080014434,4.3313,2756.2,2755.6,0.00543646]
[1740080014633,3.2078,2756.2,2756.1,0.7255]
[1740080016433,3.2078,2756.5,2756.4,0.72542]
[1740080018037,3.2078,2756.5,2756.1,22.9]
[1740080018333,3.2078,2756.2,2755.9,2.927]
[1740080018534,3.2078,2756.2,2756.0,0.72551]
[1740080018535,1.6863,2756.1,2756.0,0.72551]
[1740080019236,1.6863,2756.1,2755.7,22.9]
[1740080019433,3.2078,2755.9,2755.6,0.00543646]
[1740080019643,0.72558,2755.8,2755.7,0.72559]
[1740080019932,0.7256,2755.7,2755.6,0.73105646]
[1740080020133,11.7018,2755.9,2754.5,3.2078]
[1740080020337,3.93352,2755.3,2755.0,0.72578]
[1740080020638,0.5363,2755.2,2755.0,0.72578]
[1740080020934,0.5363,2755.2,2754.1,7.70529408]
[1740080021137,3.2078,2754.6,2754.5,0.72591]
[1740080021638,3.2078,2754.6,2754.4,0.72593]
[1740080021840,3.2078,2754.6,2754.5,0.72592]
[1740080022442,2.507,2754.8,2754.2,22.9]
[1740080022748,3.21323646,2754.9,2754.8,0.72584]
[1740080023243,3.21323646,2754.9,2754.7,0.72585]
[1740080023441,3.21323646,2754.9,2754.2,22.9]
[1740080023641,3.21323646,2754.9,2754.8,0.72584]
[1740080023937,3.21323646,2754.9,2754.2,22.9]
[1740080024142,3.21323646,2754.9,2754.8,0.72584]
[1740080025031,3.21323646,2754.9,2754.2,22.9]
[1740080025233,3.2078,2754.6,2754.2,22.9]
[1740080025435,3.2078,2754.6,2754.5,0.72592]
[1740080025630,3.2078,2754.6,2754.2,22.9]
[1740080025835,3.9337,2754.6,2754.4,0.72593]
[1740080026137,3.2078,2754.6,2754.2,22.9]
[1740080026840,3.2078,2754.3,2754.2,22.9]
[1740080027041,3.2078,2754.3,2754.2,23.626]
[1740080027436,3.2078,2754.3,2754.2,0.726]
[1740080028634,3.2078,2754.6,2754.0,2.501]
[1740080028943,3.2078,2754.6,2754.5,0.72592]
[1740080029339,3.2078,2754.6,2754.0,5.7168]
[1740080029340,3.93371,2754.6,2754.0,5.7168]
[1740080029546,3.93371,2754.6,2754.0,4.32414]
[1740080029846,3.2078,2754.6,2754.5,0.72592]
[1740080030646,0.00543646,2754.9,2754.5,0.72592]
[1740080030846,0.00543646,2754.9,2754.8,0.72584]
[1740080034947,6.46e-06,2754.9,2754.8,0.72584]
[1740080036563,6.46e-06,2754.9,2754.8,24.17074]
[1740080038358,6.46e-06,2754.9,2754.8,30.17074]
[1740080041253,6.46e-06,2754.9,2754.8,30.61649144]
[1740080042659,6.46e-06,2754.9,2754.8,24.61649144]
[1740080043059,6.46e-06,2754.9,2754.8,24.17074]
[1740080043261,6.46e-06,2754.9,2754.8,26.12784]
[1740080043453,6.46e-06,2754.9,2754.8,32.12784]
[1740080043661,6.46e-06,2754.9,2754.8,26.12784]
[1740080043856,6.46e-06,2754.9,2754.8,32.12784]
[1740080044356,6.46e-06,2754.9,2754.8,23.62584]
[1740080044562,6.46e-06,2754.9,2754.8,3.22684]
[1740080044960,6.46e-06,2754.9,2754.8,26.12684]
[1740080045161,6.46e-06,2754.9,2754.8,32.12684]
[1740080046563,6.46e-06,2754.9,2754.8,26.12684]
[1740080047964,6.46e-06,2754.9,2754.8,32.12684]
[1740080048163,6.46e-06,2754.9,2754.8,26.12684]
[1740080050258,6.46e-06,2754.9,2754.8,26.11684]
[1740080050966,6.46e-06,2754.9,2754.8,32.11684]
[1740080051367,6.46e-06,2754.9,2754.8,26.11684]
[1740080051963,6.46e-06,2754.9,2754.8,32.11684]
[1740080052166,6.46e-06,2754.9,2754.8,26.11684]
[1740080053565,6.46e-06,2754.9,2754.8,26.56350055]
[1740080054271,6.46e-06,2754.9,2754.8,26.11684]
[1740080055071,6.46e-06,2754.9,2754.8,26.56366868]
[1740080056067,6.46e-06,2754.9,2754.8,1.17266868]
[1740080056272,6.46e-06,2754.9,2754.8,3.65766868]
[1740080056670,6.46e-06,2754.9,2754.8,26.55766868]
[1740080057269,6.46e-06,2754.9,2754.8,26.11084]
[1740080058075,6.46e-06,2754.9,2754.8,26.55808425]
[1740080059476,6.46e-06,2754.9,2754.8,24.07308425]
[1740080059675,6.46e-06,2754.9,2754.8,26.55108425]
[1740080060777,6.46e-06,2754.9,2754.8,24.07308425]
[1740080060979,6.46e-06,2754.9,2754.8,26.55008425]
[1740080061480,6.46e-06,2754.9,2754.8,26.54908425]
[1740080061778,6.46e-06,2754.9,2754.8,23.62584]
[1740080061976,6.46e-06,2754.9,2754.8,0.72584]
[1740080062170,6.46e-06,2754.9,2754.3,3.62983]
[1740080062171,3.20780646,2754.9,2754.3,1.81493]
[1740080062379,3.20780646,2754.9,2754.2,3.2078]
[1740080062380,0.72588,2754.7,2754.5,0.7259]
[1740080062667,0.72588,2754.7,2754.2,3.2078]
[1740080062867,0.72593,2754.5,2754.3,0.72596]
[1740080063078,0.72592,2754.5,2754.4,0.72594]
[1740080063266,6.4147,2754.6,2754.0,1.81514]
[1740080063468,3.2078,2754.3,2754.2,0.72599]
[1740080063976,0.72606,2754.0,2753.8,22.9]
[1740080064178,3.2078,2753.9,2753.7,0.72612]
[1740080064385,3.93388,2753.9,2753.6,0.72614]
[1740080064574,3.2078,2753.9,2753.4,22.9]
[1740080064774,3.2078,2753.9,2753.8,0.7261]
[1740080065776,3.2078,2753.9,2753.4,22.9]
[1740080065974,3.2078,2753.9,2753.8,0.7261]
[1740080066771,3.7728,2754.0,2753.3,2.482]
[1740080066976,0.5472,2753.8,2753.7,0.72612]
[1740080069082,0.5472,2753.8,2753.7,23.62612]
[1740080075289,0.5472,2753.8,2753.7,0.72612]
[1740080075684,0.5472,2753.8,2753.5,22.9]
[1740080075989,3.5054,2753.7,2753.2,3.2078]
[1740080076191,0.72617,2753.6,2753.5,0.72617]
[1740080076391,2.492,2753.6,2752.9,1.81583]
[1740080076683,3.20517857,2753.4,2752.9,1.81583]
[1740080076889,3.93139857,2753.4,2753.3,0.72624]
[1740080077085,0.72633,2753.0,2752.9,0.72632]
[1740080077284,0.72633,2753.0,2752.5,1.9019093]
[1740080077285,3.93412,2753.1,2753.0,0.72632]
[1740080078087,3.2078,2753.1,2753.0,0.72632]
[1740080078989,5.70324643,2753.4,2753.3,0.72624]
[1740080079187,5.70324643,2753.4,2753.3,23.62624]
[1740080079384,3.21324643,2753.4,2753.3,23.62624]
[1740080081786,0.00544643,2753.4,2753.3,23.62624]
[1740080082386,0.00544643,2753.4,2753.3,26.83404]
[1740080082590,3.2078,2754.0,2753.3,26.1078]
[1740080082785,0.536,2754.1,2753.6,1.81534]
[1740080082992,3.788,2754.4,2753.4,3.0667]
[1740080083195,6.275,2754.4,2754.3,0.72597]
[1740080083596,3.2078,2754.4,2754.3,0.72597]
[1740080083795,6.2765,2754.7,2754.6,0.72589]
[1740080084192,3.7885,2754.7,2754.6,0.72589]
[1740080085510,4.51437,2754.7,2754.6,0.72589]
[1740080085803,3.7885,2754.7,2754.6,0.72589]
[1740080087104,3.2078,2754.7,2754.6,0.72589]
[1740080090607,0.00544643,2754.9,2754.3,2.479]
[1740080090813,0.00544643,2754.9,2754.8,0.72584]
[1740080092518,0.73125643,2754.9,2754.8,0.72584]
[1740080092915,0.00544643,2754.9,2754.8,0.72584]
[1740080094414,0.73125643,2754.9,2754.8,0.72584]
[1740080094712,0.00544643,2754.9,2754.3,1.8149]
[1740080094907,0.726,2754.3,2754.2,0.72598]
[1740080095111,0.726,2754.3,2754.1,0.00544643]
[1740080095112,0.726,2754.2,2754.1,0.00544643]
[1740080095412,3.9338,2754.2,2754.1,0.00544643]
[1740080095613,9.9338,2754.2,2754.1,0.00544643]
[1740080095818,3.9338,2754.2,2754.1,0.00544643]
[1740080096317,3.9338,2754.2,2754.1,0.73147643]
[1740080096511,3.2078,2754.2,2754.1,0.73147643]
[1740080096709,3.9338,2754.2,2754.1,0.73147643]
[1740080097814,3.2078,2754.2,2754.1,0.73147643]
[1740080100420,2.3153,2754.2,2754.1,0.73147643]
[1740080100820,2.3153,2754.2,2754.1,23.63147643]
[1740080101022,5.6758,2754.7,2754.6,0.72589]
[1740080101329,5.6758,2754.7,2754.1,23.63147643]
[1740080101330,5.6758,2754.7,2754.2,0.5364]
[1740080101518,0.72599,2754.3,2754.2,0.72598]
[1740080101716,0.726,2754.2,2754.1,0.73146643]
[1740080101921,3.2078,2754.4,2754.1,0.00544643]
[1740080102122,0.726,2754.2,2754.1,0.73146643]
[1740080102729,3.2078,2754.4,2754.1,0.00544643]
[1740080103024,3.2078,2754.7,2754.3,0.72597]
[1740080103223,0.72592,2754.6,2754.2,0.5927]
[1740080103428,0.72596,2754.4,2754.3,0.72595]
[1740080103642,3.2078,2754.4,2754.3,0.72595]
[1740080104022,3.93375,2754.4,2754.3,0.72595]
[1740080106424,3.2078,2754.4,2754.2,0.5927]
[1740080106626,0.72597,2754.3,2754.2,1.31867]
[1740080107125,0.726,2754.2,2754.1,0.00544643]
[1740080109528,0.72616,2753.6,2753.5,0.5365]
[1740080109728,3.2078,2753.6,2753.2,0.5652]
[1740080109926,3.2078,2753.3,2752.8,0.551]
[1740080110228,3.2078,2753.0,2752.8,1.27736]
[1740080110428,3.93412,2753.0,2752.9,0.72634]
[1740080110621,3.2078,2753.0,2752.9,0.72634]
[1740080110822,3.2078,2753.0,2752.8,0.551]
[1740080111225,0.72638,2752.8,2752.6,0.7264]
[1740080111429,3.2078,2753.0,2752.3,1.1543]
[1740080111627,0.72641,2752.7,2752.5,0.72643]
[1740080111826,3.2078,2753.0,2752.3,24.0543]
[1740080112021,0.72647,2752.4,2752.3,0.585]
[1740080112225,0.72646,2752.5,2752.3,0.585]
[1740080112421,0.72646,2752.5,2752.3,1.31149]
[1740080112828,5.6848,2752.6,2751.8,22.9]
[1740080113029,6.41122,2752.6,2752.3,0.72648]
[1740080113227,6.41122,2752.6,2751.9,2.40151]
[1740080113228,5.6848,2752.6,2751.9,0.585]
[1740080113427,5.6848,2752.6,2752.0,1.81646]
[1740080113626,5.6848,2752.6,2752.5,0.72645]
[1740080113829,5.6848,2752.6,2752.4,0.72646]
[1740080114026,5.6848,2752.6,2752.5,0.72645]
[1740080114431,3.2078,2752.6,2752.0,2.927]
[1740080114631,3.2078,2752.6,2752.5,0.72645]
[1740080115329,3.2078,2752.6,2752.5,23.62645]
[1740080118431,3.2078,2752.6,2752.5,0.72645]
[1740080119132,3.93422,2752.6,2752.5,0.72645]
[1740080120035,3.2078,2752.6,2752.5,0.72645]
[1740080120435,3.93422,2752.6,2752.5,0.72645]
[1740080120636,3.2078,2752.6,2752.5,0.72645]
[1740080121039,3.93422,2752.6,2752.5,0.72645]
[1740080121240,0.72646,2752.5,2752.4,0.72645]
[1740080121433,3.93423,2752.6,2752.5,0.72645]
[1740080121937,0.72647,2752.5,2752.4,0.72645]
[1740080122338,0.72646,2752.5,2752.4,0.72645]
[1740080122540,3.93423,2752.6,2752.5,0.72645]
[1740080123739,3.2078,2752.6,2752.5,0.72645]
[1740080126236,0.00544643,2753.2,2753.1,0.72629]
[1740080126435,3.2078,2754.2,2754.1,0.72603]
[1740080126935,0.5583,2754.6,2754.5,0.72592]
[1740080127331,3.2078,2754.9,2754.7,0.72586]
[1740080127636,3.2078,2754.9,2754.8,0.72584]
[1740080127836,3.2078,2754.9,2754.7,0.72585]
[1740080128032,0.5583,2755.0,2754.3,0.00544643]
[1740080128232,6.2441,2755.0,2754.4,3.2078]
[1740080128433,3.7661,2755.0,2754.9,0.72581]
[1740080128638,3.2078,2755.0,2754.9,0.72581]
[1740080129135,0.00544643,2755.1,2754.4,5.6848]
[1740080129444,0.00544643,2755.1,2755.0,0.72579]
[1740080131443,6.00544643,2755.1,2754.3,0.00544643]
[1740080131643,5.6808,2755.0,2754.3,0.00544643]
[1740080131838,0.72583,2754.9,2754.3,0.00544643]
[1740080132149,0.72583,2754.9,2754.6,0.72589]
[1740080132340,6.4066,2755.0,2754.7,0.72586]
[1740080132542,5.6808,2755.0,2754.3,0.00544643]
[1740080132747,5.6808,2755.0,2754.6,0.72587]
[1740080132946,5.6808,2755.0,2754.3,0.00544643]
[1740080133150,3.2078,2754.7,2754.3,0.00544643]
[1740080133348,0.72595,2754.4,2754.3,0.00544643]
[1740080133657,3.93375,2754.4,2754.3,0.00544643]
[1740080133951,0.7261,2753.8,2753.7,3.2078]
[1740080134136,2.478,2753.8,2753.7,3.93393]
[1740080134951,3.2078,2754.4,2753.7,3.93393]
[1740080135244,0.5778,2754.5,2753.7,3.93393]
[1740080135441,3.2078,2754.7,2754.5,0.72592]
[1740080135644,3.2078,2754.7,2753.9,1.81519]
[1740080135645,0.72595,2754.4,2754.2,0.72598]
[1740080135845,0.72604,2754.1,2753.6,3.2078]
[1740080136044,0.72604,2754.1,2753.9,0.72607]
[1740080136349,2.481,2754.1,2753.6,3.2078]
[1740080136947,0.72607,2754.0,2753.3,1.81556]
[1740080137149,2.481,2754.1,2753.3,1.81556]
[1740080137344,3.20704,2754.1,2753.5,3.2078]
[1740080137646,2.481,2754.1,2753.5,3.2078]
[1740080137852,0.5583,2754.2,2754.1,0.72603]
[1740080138050,3.0383,2754.2,2754.1,0.72603]
[1740080138250,6.41378,2754.3,2754.1,0.72603]
[1740080138452,5.6878,2754.3,2754.2,0.726]
[1740080138954,5.6878,2754.3,2753.7,1.81533]
[1740080139146,0.726,2754.2,2754.0,0.72603]
[1740080139749,5.6878,2754.3,2753.5,3.2078]
[1740080140046,3.2078,2754.0,2753.5,3.2078]
[1740080140247,2.48,2753.9,2753.5,3.2078]
[1740080140442,0.72612,2753.8,2753.7,0.72612]
[1740080140651,3.055,2753.9,2753.5,3.2078]
[1740080140852,3.055,2753.9,2753.8,0.7261]
[1740080141649,2.48,2753.9,2753.8,0.7261]
[1740080141844,3.2078,2754.3,2754.2,0.726]
[1740080142051,2.479,2754.3,2754.2,0.726]
[1740080143157,3.20497,2754.3,2754.2,0.726]
[1740080143357,5.6868,2754.3,2753.8,3.2078]
[1740080143559,5.6868,2754.3,2753.6,1.0961]
[1740080143759,7.50177,2754.3,2753.6,0.5572]
[1740080143956,7.50177,2754.3,2753.7,0.72612]
[1740080143957,0.72611,2753.8,2753.7,0.72612]
[1740080145261,2.481,2753.9,2753.4,3.2078]
[1740080145464,3.2078,2753.7,2753.1,0.5504]
[1740080145654,3.2078,2753.4,2752.7,3.7467]
[1740080145852,2.482,2753.3,2753.0,0.7263]
[1740080146058,2.482,2753.3,2752.7,23.4389]
[1740080146364,3.2078,2753.0,2752.5,0.5504]
[1740080146662,2.484,2752.9,2752.8,0.72637]
[1740080146863,3.21036,2752.9,2752.7,0.72639]
[1740080147056,0.72638,2752.8,2752.6,0.72641]
[1740080147256,3.21036,2752.9,2752.7,0.72639]
[1740080147460,0.72637,2752.8,2752.6,0.72641]
[1740080147661,0.72637,2752.8,2752.0,0.5703]
[1740080147662,2.484,2752.9,2752.0,0.5703]
[1740080147863,0.72642,2752.7,2752.4,0.72645]
[1740080148264,0.72642,2752.6,2752.4,0.72645]
[1740080148456,0.72641,2752.7,2752.4,0.72645]
[1740080148662,0.72641,2752.7,2752.1,26.7004]
[1740080148855,0.72641,2752.7,2752.4,0.72646]
[1740080149055,3.93421,2752.7,2752.4,0.72646]
[1740080149464,3.93421,2752.7,2752.1,26.7004]
[1740080149664,3.2078,2752.7,2752.4,0.72645]
[1740080149963,0.72643,2752.6,2752.1,26.7004]
[1740080150167,2.479,2752.5,2752.4,0.72646]
[1740080150467,2.479,2752.5,2752.4,0.72647]
[1740080153460,3.2078,2752.7,2752.6,0.72642]
[1740080153660,0.72637,2752.8,2752.7,0.72638]
[1740080153854,2.473,2752.8,2752.7,0.72638]
[1740080154059,2.473,2752.8,2752.7,23.62638]
[1740080154255,3.19937,2752.8,2752.7,23.62638]
[1740080154455,2.473,2752.8,2752.7,23.62638]
[1740080154664,0.5929,2752.9,2752.7,22.9]
[1740080154862,3.2078,2753.1,2753.0,0.72632]
[1740080155159,2.949,2753.3,2753.2,0.72626]
[1740080155366,1.31423,2753.4,2752.8,2.9152]
[1740080155553,2.474,2753.3,2753.2,0.72626]
[1740080155960,3.2078,2753.5,2753.4,0.72621]
[1740080156171,2.48044643,2753.7,2753.6,0.72616]
[1740080156661,3.20658643,2753.7,2753.6,0.72616]
[1740080156857,2.48044643,2753.7,2753.6,0.72616]
[1740080157365,0.00544643,2753.7,2753.6,0.72616]
[1740080158758,6.43e-06,2753.7,2753.6,0.72616]
[1740080159668,6.43e-06,2753.7,2753.6,3.19816]
[1740080160971,6.43e-06,2753.7,2753.6,9.19816]
[1740080162465,6.43e-06,2753.7,2753.6,32.09816]
[1740080163270,6.43e-06,2753.7,2753.6,26.09816]
[1740080164074,6.43e-06,2753.7,2753.6,3.19816]
[1740080164280,6.43e-06,2753.7,2753.6,0.72616]
[1740080164574,6.43e-06,2753.7,2753.6,3.19316]
[1740080166275,6.43e-06,2753.7,2753.6,0.72616]
[1740080166772,6.43e-06,2753.7,2753.4,3.21324643]
[1740080166971,0.72615643,2753.7,2753.6,0.72616]
[1740080167175,6.43e-06,2753.7,2753.6,0.72616]
[1740080170373,0.72613643,2753.7,2753.6,0.72616]
[1740080170675,6.43e-06,2753.7,2753.6,0.72616]
[1740080171876,6.43e-06,2753.7,2753.4,4.33424643]
[1740080171877,6.43e-06,2753.7,2753.4,3.21324643]
[1740080172067,0.72618,2753.5,2753.4,0.00544643]
[1740080172572,0.72618,2753.5,2753.4,0.73165643]
[1740080172975,3.93398,2753.5,2753.4,0.00544643]
[1740080173170,10.49858,2753.5,2753.4,0.00544643]
[1740080173366,0.72632,2753.0,2752.9,0.72633]
[1740080173566,2.466,2753.1,2752.5,3.2078]
[1740080173769,0.72637,2752.8,2752.7,0.72637]
[1740080173967,0.72642,2752.6,2752.5,3.93424]
[1740080174168,2.468,2752.7,2752.2,3.2078]
[1740080174477,0.72646,2752.5,2752.4,0.72647]
[1740080174775,0.72646,2752.5,2752.1,22.9]
[1740080175275,2.468,2752.7,2752.1,22.9]
[1740080175484,0.72651,2752.3,2752.1,22.9]
[1740080175681,0.72652,2752.3,2752.1,23.62654]
[1740080176180,0.72652,2752.3,2752.1,0.72654]
[1740080176682,0.7266,2752.0,2751.6,3.2078]
[1740080176869,5.6728,2752.3,2751.6,3.2078]
[1740080177074,5.6728,2752.3,2751.8,0.72661]
[1740080177379,0.00544643,2752.2,2751.7,0.72664]
[1740080177682,0.72663,2751.9,2751.6,26.83447]
[1740080177981,0.5639,2752.1,2751.8,0.72663]
[1740080178284,0.5639,2752.1,2751.6,26.1078]
[1740080178476,0.5639,2752.1,2752.0,0.72658]
[1740080178671,0.00544643,2752.2,2752.1,0.72655]
[1740080178982,0.00544643,2752.2,2751.9,0.72658]
[1740080179182,0.73198643,2752.2,2752.0,0.72658]
[1740080179585,0.73198643,2752.2,2752.1,0.72655]
[1740080179586,0.00544643,2752.2,2752.1,0.72655]
[1740080181776,6.43e-06,2752.2,2752.1,0.72655]
[1740080181983,6.43e-06,2752.2,2752.1,23.62655]
[1740080182177,6.43e-06,2752.2,2752.1,26.09055]
[1740080182886,6.43e-06,2752.2,2752.1,32.09055]
[1740080183975,3.2078,2753.8,2752.1,34.99672]
[1740080184190,3.2078,2753.8,2753.3,3.2078]
[1740080184386,3.93391,2753.8,2753.6,0.72615]
[1740080184581,0.72614,2753.7,2753.3,3.2078]
[1740080184886,3.2078,2753.8,2753.7,0.72613]
[1740080185078,3.21324643,2753.8,2753.7,0.72613]
[1740080185279,0.00544643,2753.8,2753.7,0.72613]
[1740080191088,6.43e-06,2753.8,2753.7,0.72613]
[1740080191594,6.43e-06,2753.8,2753.7,1.27083]
[1740080191997,6.43e-06,2753.8,2753.7,4.19783]
[1740080192795,6.43e-06,2753.8,2753.7,27.09783]
[1740080195296,6.43e-06,2753.8,2753.7,24.17083]
[1740080196798,6.43e-06,2753.8,2753.7,24.72443]
[1740080203995,6.43e-06,2753.8,2753.7,0.72613]
[1740080204907,0.72610643,2753.8,2753.7,0.72613]
[1740080205302,6.43e-06,2753.8,2753.7,0.72613]
[1740080206004,0.72610643,2753.8,2753.7,0.72613]
[1740080206207,6.43e-06,2753.8,2753.7,0.72613]
[1740080206612,0.72610643,2753.8,2753.7,0.72613]
[1740080207104,6.43e-06,2753.8,2753.6,3.2078]
[1740080207408,0.72612643,2753.8,2753.7,0.72613]
[1740080207707,0.72613,2753.7,2753.6,3.93394]
[1740080208099,0.72613,2753.7,2753.6,3.2078]
[1740080208712,0.72613,2753.7,2753.6,3.93396]
[1740080209312,0.72623,2753.4,2753.2,26.11324643]
[1740080209513,0.72623,2753.4,2753.3,0.72621]
[1740080209815,0.72621,2753.5,2753.4,0.72619]
[1740080210406,0.72617,2753.6,2753.5,0.72616]
[1740080210712,0.72616,2753.7,2753.6,0.72613]
[1740080211003,6.43e-06,2753.8,2753.6,0.72613]
[1740080211210,6.43e-06,2753.8,2753.7,0.72613]
[1740080211408,0.72610643,2753.8,2753.7,0.72613]
[1740080211608,0.72615,2753.7,2753.6,0.72613]
[1740080211799,0.72612643,2753.8,2753.7,0.72613]
[1740080212003,6.43e-06,2753.8,2753.7,0.72613]
[1740080220522,6.43e-06,2753.8,2753.2,26.11324643]
[1740080220817,0.7262,2753.5,2753.4,0.72619]
[1740080221005,6.43e-06,2753.8,2753.2,3.21324643]
[1740080221006,0.72624,2753.3,2753.2,3.21324643]
[1740080221206,0.72624,2753.3,2753.2,0.00544643]
[1740080221510,0.72624,2753.3,2753.2,0.73170643]
[1740080221710,0.5594,2753.3,2753.2,0.73170643]
[1740080222114,0.5897,2753.4,2753.3,0.72624]
[1740080222617,1.31591,2753.4,2753.3,0.72624]
[1740080222813,0.72624,2753.3,2753.2,0.00544643]
[1740080223216,4.50484,2753.3,2753.2,0.00544643]
[1740080223411,1.29704,2753.3,2753.2,0.00544643]
[1740080225114,10.50484,2753.3,2753.2,0.00544643]
[1740080225514,10.50484,2753.3,2752.7,22.9]
[1740080225515,9.7786,2753.3,2752.7,23.62637]
[1740080225719,0.72637,2752.8,2752.7,23.62639]
[1740080225920,0.72637,2752.8,2752.7,0.72639]
[1740080226218,4.27266,2753.2,2752.3,5.024]
[1740080226419,4.27266,2753.2,2752.3,3.2078]
[1740080226420,0.5523,2752.7,2752.3,3.2078]
[1740080226614,0.72647,2752.5,2752.4,0.72646]
[1740080227014,0.5523,2752.7,2752.3,3.2078]
[1740080227216,1.2787,2752.7,2752.6,0.72642]
[1740080227609,0.5523,2752.7,2752.6,0.72642]
[1740080227808,2.457,2752.8,2752.7,0.72639]
[1740080228008,6.1568,2753.0,2752.9,0.72634]
[1740080228210,0.72629,2753.1,2753.0,0.72632]
[1740080228824,0.72627,2753.2,2753.1,0.72627]
[1740080229014,1.1231,2753.3,2752.7,1.81597]
[1740080229326,0.72632,2753.0,2752.9,0.72632]
[1740080229622,4.3309,2753.3,2752.6,3.2078]
[1740080229824,0.72628,2753.2,2753.1,0.72626]
[1740080230023,0.72633,2753.0,2752.9,0.72632]
[1740080230524,0.72631,2753.1,2753.0,0.7263]
[1740080230824,0.72633,2753.0,2752.9,0.72631]
[1740080231322,4.3309,2753.3,2752.6,5.02383]
[1740080231624,4.3309,2753.3,2752.6,3.2078]
[1740080231825,0.72633,2753.0,2752.9,0.72631]
[1740080232326,0.72629,2753.2,2753.1,0.72627]
[1740080232821,0.72633,2753.0,2752.9,0.72631]
[1740080233019,4.3309,2753.3,2752.6,3.2078]
[1740080233221,0.72639,2752.8,2752.7,0.72637]
[1740080233424,0.72639,2752.7,2752.6,3.2078]
[1740080233813,0.72639,2752.7,2752.6,3.93422]
[1740080234623,0.72639,2752.7,2752.4,1.1367]
[1740080234624,5.02363,2753.0,2752.2,0.00544643]
[1740080234818,0.72645,2752.6,2752.5,0.72643]
[1740080235524,0.72647,2752.5,2752.4,0.72645]
[1740080236223,3.2078,2753.0,2752.9,0.72634]
[1740080236820,0.72629,2753.1,2752.7,1.81598]
[1740080237020,0.72629,2753.1,2753.0,0.72632]
[1740080237920,0.72629,2753.1,2752.8,0.5801]
[1740080237921,2.457,2753.2,2752.8,0.5801]
[1740080238121,0.72633,2753.1,2753.0,0.7263]
[1740080238329,2.457,2753.2,2752.8,0.5801]
[1740080238522,0.72631,2753.1,2753.0,0.72629]
[1740080239030,3.18328,2753.2,2753.1,0.72629]
[1740080240127,0.72624,2753.3,2752.8,2.39598]
[1740080240327,0.72628,2753.2,2753.1,0.72626]
[1740080240826,0.72625,2753.3,2753.2,0.72625]
[1740080243030,0.72623,2753.4,2753.3,0.72621]
[1740080243531,0.72626,2753.3,2753.2,0.72625]
[1740080243735,0.72628,2753.2,2753.1,0.72627]
[1740080245921,0.72632,2753.0,2752.9,3.2078]
[1740080246238,0.72639,2752.7,2752.6,1.2949]
[1740080246431,0.72639,2752.7,2752.6,1.29492]
[1740080247328,0.72645,2752.6,2752.5,0.72643]
[1740080247936,2.41077,2752.9,2752.3,3.7444]
[1740080248231,0.72647,2752.4,2752.3,0.5366]
[1740080248428,0.72647,2752.4,2752.3,1.2631]
[1740080248629,0.72647,2752.4,2752.3,0.5366]
[1740080249133,3.0416,2752.8,2752.3,2.35283]
[1740080249433,0.72643,2752.6,2752.5,0.72642]
[1740080249822,0.72646,2752.5,2752.4,0.72644]
[1740080250027,0.72645,2752.6,2752.5,0.72643]
[1740080250327,0.72647,2752.4,2752.3,1.26308]
[1740080250534,0.72647,2752.4,2752.3,0.5366]
[1740080250930,0.72647,2752.4,2752.3,1.2631]
[1740080251123,0.72647,2752.4,2752.3,0.5366]
[1740080251332,0.7265,2752.3,2752.2,0.00544643]
[1740080252124,3.1835,2752.3,2752.2,0.00544643]
[1740080252536,3.747,2752.3,2752.2,0.00544643]
[1740080260739,3.747,2752.3,2752.2,0.73197643]